fUSD/lending_fUSD_20260103
["ID","MTS","AMOUNT","RATE_DAILY","PERIOD"]
[400383743,1767480581400,151.0,0.00034387,2]
[400383744,1767480597566,151.0,0.00034383,2]
[400383745,1767480613957,151.0,0.00034304,2]
[400383748,1767480630346,151.0,0.00034304,2]
[400383755,1767480631675,-931.037,0.00035971,3]
[400383756,1767480631738,-362.69620106,0.00035971,3]
[400383757,1767480631749,-3121.66359535,0.00035972,2]
[400383758,1767480631759,-1500.0,0.00036168,120]
[400383759,1767480631770,-150.0,0.00036339,2]
[400383760,1767480631779,-1600.0,0.00036366,3]
[400383761,1767480631790,-2811.81,0.00036367,2]
[400383762,1767480631799,-166.66,0.00036479,30]
[400383763,1767480631809,-151.0,0.00036649,14]
[400383764,1767480631819,-400.0,0.00036651,3]
[400383765,1767480631829,-400.0,0.00036651,2]
[400383766,1767480631839,-2457.01380439,0.00036652,2]
[400383767,1767480631864,-919304.70627055,0.00036652,2]
[400383768,1767480635880,179.54,0.00013699,2]
[400383769,1767480636105,179.54,0.00020187,2]
[400383770,1767480636297,179.54,0.00026676,2]
[400383771,1767480636505,179.54,0.00033165,2]
[400383772,1767480637048,-995.88708944,0.00036638,11]
[400383773,1767480637061,-53.48544994,0.00036638,11]
[400383774,1767480637071,-661.37350231,0.00036652,2]
[400383809,1767480637677,-2508.46268115,0.00036652,2]
[400383810,1767480637790,-2754.74062376,0.00036652,2]
[400383811,1767480637801,-1099.0,0.00036652,2]
[400383845,1767480638333,-2482.15001025,0.00036652,2]
[400383848,1767480638346,-38263.15238103,0.00036652,2]
[400383994,1767480639800,-3793.36875664,0.00036652,2]
[400383996,1767480639812,-1131.56500201,0.00036652,2]
[400383998,1767480639824,-906.82879872,0.00036652,2]
[400384032,1767480640157,-568.84617588,0.00036652,2]
[400384033,1767480640189,-24068.79199331,0.00036652,2]
[400384034,1767480640199,-847.36,0.00036738,2]
[400384035,1767480640209,-594.83698355,0.00036752,2]
[400384036,1767480640219,-2027.93,0.00036752,46]
[400384037,1767480640228,-430.43,0.00036878,2]
[400384038,1767480640237,-277.35679052,0.00036937,2]
[400384039,1767480640246,-166.66,0.00037202,30]
[400384040,1767480640255,-6699.2591,0.00037224,2]
[400384042,1767480640265,-438.52609268,0.00037226,2]
[400384059,1767480644842,-129.83672773,0.00037226,2]
[400384060,1767480644949,-666.106399,0.00037226,2]
[400384063,1767480644962,-3079.85686116,0.00037226,2]
[400384065,1767480645816,-256.7921,0.00037226,2]
[400384067,1767480646468,151.0,0.0003457,2]
[400384068,1767480663586,151.0,0.00034701,2]
[400384075,1767480694216,1622.344,0.00035432,42]
[400384076,1767480711738,151.0,0.00034233,2]
[400384077,1767480727923,151.0,0.00034223,2]
[400384078,1767480744118,151.0,0.00034241,2]
[400384081,1767480989029,250.0,0.0002,2]
[400384082,1767481234250,-151.0,0.00032154,2]
[400384083,1767481234351,-151.0,0.00032197,2]
[400384088,1767481507140,241.3,0.00032291,120]
[400384089,1767481509482,195.0,0.00032291,120]
[400384090,1767481524330,168.39,0.00027781,2]
[400384091,1767481552126,-165.66034168,0.00032209,2]
[400384092,1767481552148,-102.94530612,0.00032273,2]
[400384093,1767481596092,-598.63385095,0.00032273,2]
[400384094,1767481628092,-2501.87084293,0.00032273,2]
[400384095,1767481628116,-490.0,0.00032309,2]
[400384096,1767481628140,-151.0,0.00033353,2]
[400384097,1767481628163,-151.0,0.00033368,2]
[400384098,1767481628185,-2502.658425,0.00034373,2]
[400384099,1767481628207,-400.0,0.00034546,3]
[400384100,1767481628230,-1600.0,0.00034546,3]
[400384101,1767481628253,-308.00902792,0.00034546,2]
[400384102,1767481638086,-151.0,0.00033428,2]
[400384103,1767481638108,-91.99097208,0.00034546,2]
[400384104,1767481638130,-489.88788488,0.00034547,14]
[400384106,1767481685706,520.0,0.00043224,60]
[400384107,1767481685753,650.88312576,0.00043224,60]
[400384108,1767481685795,500.0,0.00043224,60]
[400384109,1767481685837,151.0,0.00043224,60]
[400384110,1767481688059,578.53231189,0.00043224,60]
[400384111,1767481688141,266.35002867,0.00043224,60]
[400384112,1767481689350,553.64373807,0.00043224,60]
[400384113,1767481690377,250.0,0.00043224,60]
[400384114,1767481690570,500.0,0.00043224,60]
[400384115,1767481690985,151.0,0.00043224,60]
[400384116,1767481696827,521.78601097,0.00043224,60]
[400384123,1767481758099,-151.0,0.00033338,2]
[400384124,1767481758125,-151.0,0.0003335,2]
[400384125,1767481758150,-833.81211512,0.00034547,14]
[400384126,1767481758175,-200.0,0.00034547,2]
[400384127,1767481758199,-207.4,0.00034547,2]
[400384128,1767481758224,-215.0738,0.00034547,2]
[400384129,1767481758247,-223.0315306,0.00034547,2]
[400384130,1767481758272,-330.01850927,0.00034547,2]
[400384131,1767481758296,-1600.0,0.00034792,3]
[400384132,1767481758324,-300.0,0.00034792,3]
[400384133,1767481758350,-10827.48583041,0.00034793,2]
[400384134,1767481765749,151.0,0.00033362,2]
[400384135,1767481768075,-11935.34416959,0.00034793,2]
[400384136,1767481768099,-1323.7,0.00034821,14]
[400384137,1767481768122,-200.0,0.00034855,2]
[400384138,1767481768145,-1149.56,0.00035048,2]
[400384139,1767481768170,-1323.7,0.00035095,14]
[400384140,1767481768194,-200.0,0.00035239,2]
[400384141,1767481768218,-1323.7,0.00035369,14]
[400384142,1767481768240,-750.89082211,0.00035418,2]
[400384143,1767481768262,-7527.45,0.00035419,2]
[400384144,1767481768286,-300.0,0.000355,120]
[400384145,1767481768312,-195.0,0.000355,120]
[400384146,1767481768337,-161.87272872,0.000355,120]
[400384147,1767481797743,151.0,0.00033256,2]
[400384148,1767481807988,305.03350145,0.00043224,60]
[400384149,1767481814031,190.30548592,0.00043224,60]
[400384150,1767481814174,151.0,0.00033444,2]
[400384151,1767481816279,4551.78207652,0.000355,2]
[400384152,1767481819107,250.0,0.00043224,60]
[400384153,1767481819761,250.0,0.00043224,60]
[400384154,1767481831141,151.0,0.00033444,2]
[400384160,1767481831782,-572.0678,0.00035571,2]
[400384161,1767481832122,-575.5876787,0.00035571,2]
[400384162,1767481832135,-452.3445213,0.00035571,2]
[400384163,1767481832145,-94.20044895,0.00035571,2]
[400384164,1767481832157,-584.79955105,0.00035571,2]
[400384165,1767481832167,-139.57830046,0.00035571,3]
[400384166,1767481832178,-260.42169954,0.00035571,3]
[400384167,1767481832188,-400.0,0.00035571,2]
[400384168,1767481832197,-1600.0,0.00035571,3]
[400384169,1767481832207,-7577.51010423,0.00035572,2]
[400384170,1767481832232,-562.249999,0.00035572,2]
[400384171,1767481832296,-4351.4977131,0.00035572,2]
[400384173,1767481832309,-503.42733945,0.00035572,2]
[400384176,1767481832334,-1218.8352206,0.00035572,2]
[400384178,1767481832345,-1323.7,0.00035643,14]
[400384180,1767481832356,-500.0,0.0003567,15]
[400384182,1767481832367,-456.09915347,0.0003567,15]
[400384184,1767481832377,-364.17382154,0.0003567,15]
[400384185,1767481832390,-207.16373599,0.0003567,15]
[400384188,1767481832401,-392.80214195,0.0003567,15]
[400384189,1767481832412,-217.93405338,0.0003567,15]
[400384191,1767481832422,-531.27888011,0.00035671,15]
[400384193,1767481832432,-500.0,0.00035671,7]
[400384195,1767481832442,-270.42173857,0.00035671,15]
[400384197,1767481832452,-500.0,0.00035671,7]
[400384200,1767481832462,-752.50922583,0.00035671,15]
[400384201,1767481832472,-391.90128331,0.00035671,7]
[400384204,1767481832483,-500.0,0.00035671,15]
[400384206,1767481832493,-500.0,0.00035671,15]
[400384208,1767481832502,-500.0,0.00035671,7]
[400384210,1767481832513,-752.50922583,0.00035671,15]
[400384212,1767481832522,-500.0,0.00035671,15]
[400384214,1767481832532,-500.0,0.00035671,15]
[400384216,1767481832542,-752.50922583,0.00035671,15]
[400384217,1767481832551,-260.84007932,0.00035671,7]
[400384219,1767481832561,-500.0,0.00035671,15]
[400384221,1767481832571,-499.15205372,0.00035671,15]
[400384224,1767481832585,-253.35717211,0.00035671,15]
[400384226,1767481832595,-500.0,0.00035671,15]
[400384229,1767481832610,-500.0,0.00035671,15]
[400384230,1767481832620,-280.52565348,0.00035671,15]
[400384233,1767481832634,-471.98357235,0.00035671,15]
[400384235,1767481832644,-500.0,0.00035671,15]
[400384237,1767481832654,-154.99939513,0.00035671,15]
[400384239,1767481832664,-500.0,0.00035671,15]
[400384241,1767481832673,-752.50922583,0.00035671,15]
[400384243,1767481832683,-500.0,0.00035671,15]
[400384245,1767481832693,-752.50922583,0.00035671,15]
[400384247,1767481832704,-500.0,0.00035671,15]
[400384249,1767481832713,-747.82695938,0.00035671,15]
[400384251,1767481832725,-4.68226645,0.00035671,15]
[400384253,1767481832735,-500.0,0.00035671,15]
[400384255,1767481832744,-500.0,0.00035671,15]
[400384257,1767481832754,-752.50922583,0.00035671,15]
[400384259,1767481832763,-500.0,0.00035671,15]
[400384261,1767481832774,-752.50922583,0.00035671,15]
[400384263,1767481832785,-500.0,0.00035671,15]
[400384265,1767481832795,-752.50922583,0.00035671,15]
[400384267,1767481832805,-500.0,0.00035671,15]
[400384269,1767481832815,-50.72289909,0.00035671,15]
[400384271,1767481837921,-310.12163652,0.00035671,15]
[400384272,1767481837932,-752.50922583,0.00035671,15]
[400384273,1767481837942,-500.0,0.00035671,15]
[400384274,1767481837957,-752.50922583,0.00035671,15]
[400384275,1767481837967,-500.0,0.00035671,15]
[400384276,1767481837977,-500.0,0.00035671,15]
[400384277,1767481837988,-684.85991182,0.00035671,15]
[400384278,1767481838000,-67.64931401,0.00035671,15]
[400384279,1767481838010,-500.0,0.00035671,15]
[400384280,1767481838021,-752.50922583,0.00035671,15]
[400384281,1767481838032,-500.0,0.00035671,15]
[400384282,1767481838043,-752.50922583,0.00035671,15]
[400384283,1767481838052,-500.0,0.00035671,15]
[400384284,1767481838062,-500.0,0.00035671,15]
[400384285,1767481838072,-752.50922583,0.00035671,15]
[400384286,1767481838083,-752.50922583,0.00035671,15]
[400384287,1767481838092,-500.0,0.00035671,15]
[400384288,1767481838103,-752.50922583,0.00035671,15]
[400384289,1767481838116,-500.0,0.00035671,15]
[400384290,1767481838125,-752.50922583,0.00035671,15]
[400384291,1767481838135,-500.0,0.00035671,15]
[400384292,1767481838145,-752.50922583,0.00035671,15]
[400384293,1767481838159,-500.0,0.00035671,15]
[400384294,1767481838169,-752.50922583,0.00035671,15]
[400384295,1767481838179,-500.0,0.00035671,15]
[400384296,1767481838189,-752.50922583,0.00035671,15]
[400384297,1767481838199,-21.22346253,0.00035671,15]
[400384298,1767481838212,-478.77653747,0.00035671,15]
[400384299,1767481838222,-500.0,0.00035671,15]
[400384300,1767481838233,-752.50922583,0.00035671,15]
[400384301,1767481838243,-500.0,0.00035671,15]
[400384302,1767481838254,-752.50922583,0.00035671,15]
[400384303,1767481838264,-500.0,0.00035671,15]
[400384304,1767481838275,-752.50922583,0.00035671,15]
[400384305,1767481838286,-500.0,0.00035671,15]
[400384306,1767481838296,-752.50922583,0.00035671,15]
[400384307,1767481838306,-500.0,0.00035671,15]
[400384308,1767481838317,-752.50922583,0.00035671,15]
[400384309,1767481838328,-500.0,0.00035671,15]
[400384310,1767481838338,-752.50922583,0.00035671,15]
[400384311,1767481838351,-500.0,0.00035671,15]
[400384312,1767481838362,-752.50922583,0.00035671,15]
[400384313,1767481838373,-500.0,0.00035671,15]
[400384314,1767481838383,-752.50922583,0.00035671,15]
[400384315,1767481838396,-500.0,0.00035671,15]
[400384316,1767481838407,-752.50922583,0.00035671,15]
[400384317,1767481838417,-500.0,0.00035671,15]
[400384318,1767481838428,-333.34664756,0.00035671,15]
[400384319,1767481838709,-166.65335244,0.00035671,15]
[400384320,1767481838720,-500.0,0.00035671,15]
[400384321,1767481838731,-752.50922583,0.00035671,15]
[400384322,1767481838741,-752.50922583,0.00035671,15]
[400384323,1767481838751,-500.0,0.00035671,15]
[400384324,1767481838761,-752.50922583,0.00035671,15]
[400384325,1767481838771,-500.0,0.00035671,15]
[400384326,1767481838781,-500.0,0.00035671,15]
[400384327,1767481838791,-752.50922583,0.00035671,15]
[400384328,1767481838800,-752.50922583,0.00035671,15]
[400384329,1767481838811,-752.50922583,0.00035671,15]
[400384330,1767481838820,-752.50922583,0.00035671,15]
[400384331,1767481838830,-487.87085853,0.00035671,15]
[400384332,1767481839964,-264.6383673,0.00035671,15]
[400384333,1767481839975,-27.2182479,0.00035671,15]
[400384334,1767481839988,-573.41328254,0.00035671,15]
[400384335,1767481840022,-151.87769539,0.00035671,15]
[400384336,1767481840033,-752.50922583,0.00035671,15]
[400384337,1767481840043,-752.50922583,0.00035671,15]
[400384338,1767481840054,-752.50922583,0.00035671,15]
[400384339,1767481840063,-467.70239468,0.00035671,15]
[400384340,1767481840076,-284.80683115,0.00035671,15]
[400384341,1767481840086,-555.39602963,0.00035671,15]
[400384342,1767481840111,-197.1131962,0.00035671,15]
[400384343,1767481840123,-196.64544462,0.00035671,15]
[400384403,1767481843883,-555.86378121,0.00035671,15]
[400384404,1767481843893,-752.50922583,0.00035671,15]
[400384405,1767481843904,-752.50922583,0.00035671,15]
[400384406,1767481843914,-500.0,0.00035671,15]
[400384407,1767481843924,-179.09811099,0.00035671,15]
[400384408,1767481844792,-66.51487236,0.00035671,15]
[400384411,1767481845823,-311.3109951,0.00035671,15]
[400384412,1767481845834,-1052.07357337,0.00035671,15]
[400384413,1767481845844,-431.71424253,0.00035671,15]
[400384414,1767481845939,-620.35933084,0.00035671,15]
[400384415,1767481845950,-1052.07357337,0.00035671,15]
[400384416,1767481845960,-1052.07357337,0.00035671,15]
[400384417,1767481845971,-1052.07357337,0.00035671,15]
[400384418,1767481845981,-1052.07357337,0.00035671,15]
[400384419,1767481845991,-1052.07357337,0.00035671,15]
[400384420,1767481846001,-1052.07357337,0.00035671,15]
[400384421,1767481846011,-1052.07357337,0.00035671,15]
[400384422,1767481846021,-471.44804318,0.00035671,15]
[400384423,1767481846032,-580.62553019,0.00035671,15]
[400384424,1767481846042,-407.86829906,0.00035671,15]
[400384425,1767481846053,-92.13170094,0.00035671,15]
[400384426,1767481846063,-1052.07357337,0.00035671,15]
[400384427,1767481846072,-500.0,0.00035671,15]
[400384428,1767481846082,-1052.07357337,0.00035671,15]
[400384429,1767481846091,-500.0,0.00035671,15]
[400384430,1767481846101,-500.0,0.00035671,15]
[400384431,1767481846111,-500.0,0.00035671,15]
[400384432,1767481846121,-430.51027893,0.00035671,15]
[400384433,1767481846133,-621.56329444,0.00035671,15]
[400384434,1767481846143,-500.0,0.00035671,15]
[400384435,1767481846154,-115.04998956,0.00035671,15]
[400384436,1767481846165,-937.02358381,0.00035671,15]
[400384437,1767481846175,-500.0,0.00035671,15]
[400384438,1767481846185,-500.0,0.00035671,15]
[400384439,1767481846195,-1052.07357337,0.00035671,15]
[400384440,1767481846205,-500.0,0.00035671,15]
[400384441,1767481846215,-1052.07357337,0.00035671,15]
[400384442,1767481846275,-500.0,0.00035671,15]
[400384443,1767481846285,-500.0,0.00035671,15]
[400384444,1767481846295,-370.44416711,0.00035671,15]
[400384445,1767481846307,-453.8675,0.00035671,15]
[400384446,1767481846319,-227.76190626,0.00035671,15]
[400384447,1767481846329,-116.52609374,0.00035671,15]
[400384482,1767481870836,200.0,0.00034547,2]
[400384483,1767481871473,198.82276029,0.00034547,2]
[400384488,1767481878554,151.0,0.00043224,60]
[400384489,1767481879151,151.0,0.00043224,60]
[400384490,1767481879779,151.0,0.00043224,60]
[400384491,1767481880443,151.0,0.00043224,60]
[400384492,1767481881050,151.0,0.00043224,60]
[400384493,1767481881654,151.0,0.00043224,60]
[400384494,1767481882259,151.0,0.00043224,60]
[400384495,1767481882899,151.0,0.00043224,60]
[400384496,1767481883563,151.0,0.00043224,60]
[400384497,1767481884176,151.0,0.00043224,60]
[400384498,1767481884796,151.0,0.00043224,60]
[400384499,1767481925318,200.0,0.00043224,60]
[400384500,1767481929796,200.0,0.00043224,60]
[400384501,1767481931200,572.8247607,0.00018385,2]
[400384502,1767481931937,200.0,0.00043224,60]
[400384503,1767481943605,151.0,0.00031454,2]
[400384504,1767481944265,151.0,0.00031454,2]
[400384510,1767481960111,151.0,0.00031417,2]
[400384511,1767481960417,151.0,0.00031417,2]
[400384512,1767481976367,43.48187408,0.00031417,2]
[400384513,1767481984391,869.46,0.00017682,2]
[400384514,1767481984584,869.46,0.00018612,2]
[400384515,1767481984788,869.46,0.00019543,2]
[400384516,1767482004476,403.42414703,0.00043224,60]
[400384521,1767482046201,500.0,0.00043224,60]
[400384522,1767482046240,514.84070869,0.00043224,60]
[400384523,1767482046328,500.0,0.00043224,60]
[400384524,1767482046507,250.0,0.00043224,60]
[400384525,1767482046711,500.0,0.00043224,60]
[400384526,1767482047328,500.0,0.00043224,60]
[400384527,1767482048493,250.0,0.00043224,60]
[400384528,1767482050324,500.0,0.00043224,60]
[400384529,1767482050877,646.65982734,0.00043224,60]
[400384530,1767482051142,500.0,0.00043224,60]
[400384531,1767482053339,250.0,0.00043224,60]
[400384532,1767482053403,600.0,0.00043224,60]
[400384533,1767482054616,500.0,0.00043224,60]
[400384534,1767482055002,151.0,0.00043224,60]
[400384535,1767482406613,250.0,0.00017,2]
[400384536,1767482528241,841.876323,7.945e-05,2]
[400384537,1767482546818,20000.0,0.00043233,60]
[400384538,1767482708622,14049.743677,0.00018,2]
[400384539,1767482710917,-432.08716975,0.00018,2]
[400384540,1767482713011,-360.06694479,0.00018,2]
[400384541,1767482717857,-185.87709987,0.00018,2]
[400384542,1767482720588,-159.15,0.00018,2]
[400384544,1767482726626,-300.0,0.00018,2]
[400384545,1767482729148,1346.98306814,0.00016,2]
[400384546,1767482736125,-4890.10107855,0.00018,2]
[400384547,1767482768179,36223.93595717,0.0001799,2]
[400384549,1767482794232,334.0812417,0.00017999,2]
[400384550,1767482794269,500.0,0.00017999,2]
[400384551,1767482794306,384.48854792,0.00017999,2]
[400384552,1767482794341,152.55383736,0.00017999,2]
[400384553,1767482794399,354.63328979,0.00017999,2]
[400384554,1767482794568,584.25173538,0.00017999,2]
[400384555,1767482796842,364.33000068,0.00017999,2]
[400384556,1767482796878,186.26906812,0.00017999,2]
[400384557,1767482796917,500.0,0.00017999,2]
[400384558,1767482796957,500.0,0.00017999,2]
[400384559,1767482796994,500.0,0.00017999,2]
[400384560,1767482797034,500.0,0.00017999,2]
[400384561,1767482797071,500.0,0.00017999,2]
[400384562,1767482797116,500.0,0.00017999,2]
[400384563,1767482797154,500.0,0.00017999,2]
[400384564,1767482797197,500.0,0.00017999,2]
[400384565,1767482797238,500.0,0.00017999,2]
[400384566,1767482797279,500.0,0.00017999,2]
[400384567,1767482797319,500.0,0.00017999,2]
[400384568,1767482797354,239.44437724,0.00017999,2]
[400384569,1767482797394,500.0,0.00017999,2]
[400384570,1767482797436,500.0,0.00017999,2]
[400384571,1767482797474,500.0,0.00017999,2]
[400384572,1767482797516,500.0,0.00017999,2]
[400384573,1767482797576,500.0,0.00017999,2]
[400384574,1767482797622,500.0,0.00017999,2]
[400384575,1767482797764,500.0,0.00017999,2]
[400384576,1767482797810,500.0,0.00017999,2]
[400384577,1767482797846,500.0,0.00017999,2]
[400384578,1767482797882,500.0,0.00017999,2]
[400384579,1767482797924,500.0,0.00017999,2]
[400384580,1767482797962,500.0,0.00017999,2]
[400384581,1767482798007,500.0,0.00017999,2]
[400384582,1767482798058,500.0,0.00017999,2]
[400384583,1767482798096,500.0,0.00017999,2]
[400384584,1767482798138,500.0,0.00017999,2]
[400384585,1767482798174,500.0,0.00017999,2]
[400384586,1767482798215,500.0,0.00017999,2]
[400384587,1767482798256,500.0,0.00017999,2]
[400384588,1767482798301,500.0,0.00017999,2]
[400384589,1767482798343,500.0,0.00017999,2]
[400384590,1767482798382,500.0,0.00017999,2]
[400384591,1767482798429,500.0,0.00017999,2]
[400384592,1767482798481,500.0,0.00017999,2]
[400384593,1767482798531,500.0,0.00017999,2]
[400384594,1767482798576,500.0,0.00017999,2]
[400384595,1767482798628,440.32794004,0.00017999,2]
[400384596,1767482798676,500.0,0.00017999,2]
[400384597,1767482798719,388.93900857,0.00017999,2]
[400384598,1767482798766,500.0,0.00017999,2]
[400384599,1767482798815,500.0,0.00017999,2]
[400384600,1767482798860,500.0,0.00017999,2]
[400384601,1767482798911,500.0,0.00017999,2]
[400384602,1767482798953,500.0,0.00017999,2]
[400384603,1767482799001,500.0,0.00017999,2]
[400384604,1767482799044,500.0,0.00017999,2]
[400384605,1767482799091,500.0,0.00017999,2]
[400384606,1767482799133,500.0,0.00017999,2]
[400384607,1767482799180,500.0,0.00017999,2]
[400384608,1767482799225,500.0,0.00017999,2]
[400384609,1767482799267,500.0,0.00017999,2]
[400384610,1767482799312,500.0,0.00017999,2]
[400384611,1767482799360,500.0,0.00017999,2]
[400384612,1767482799406,500.0,0.00017999,2]
[400384613,1767482799450,500.0,0.00017999,2]
[400384614,1767482799499,500.0,0.00017999,2]
[400384615,1767482799546,500.0,0.00017999,2]
[400384616,1767482799593,500.0,0.00017999,2]
[400384617,1767482799641,500.0,0.00017999,2]
[400384618,1767482799696,500.0,0.00017999,2]
[400384619,1767482799752,500.0,0.00017999,2]
[400384620,1767482807623,1651.74176408,0.00013443,2]
[400384621,1767482813510,71403.7298288,0.000162,5]
[400384622,1767482821743,450.0,0.00017999,2]
[400384623,1767482823129,500.0,0.00017999,2]
[400384624,1767482823447,300.0,0.00017999,2]
[400384625,1767482823499,500.0,0.00017999,2]
[400384626,1767482823831,500.0,0.00017999,2]
[400384627,1767482824563,500.0,0.00017999,2]
[400384628,1767482824979,500.0,0.00017999,2]
[400384629,1767482825293,500.0,0.00017999,2]
[400384630,1767482825656,500.0,0.00017999,2]
[400384631,1767482826153,500.0,0.00017999,2]
[400384632,1767482826198,500.0,0.00017999,2]
[400384633,1767482826250,500.0,0.00017999,2]
[400384634,1767482826311,500.0,0.00017999,2]
[400384635,1767482826420,500.0,0.00017999,2]
[400384636,1767482826487,500.0,0.00017999,2]
[400384637,1767482826642,500.0,0.00017999,2]
[400384638,1767482826724,500.0,0.00017999,2]
[400384639,1767482826791,500.0,0.00017999,2]
[400384640,1767482826872,500.0,0.00017999,2]
[400384641,1767482826945,500.0,0.00017999,2]
[400384642,1767482827018,500.0,0.00017999,2]
[400384643,1767482827094,500.0,0.00017999,2]
[400384644,1767482827180,500.0,0.00017999,2]
[400384645,1767482827265,400.0,0.00017999,2]
[400384646,1767482827350,500.0,0.00017999,2]
[400384647,1767482827434,500.0,0.00017999,2]
[400384648,1767482827572,500.0,0.00017999,2]
[400384649,1767482827666,500.0,0.00017999,2]
[400384650,1767482828286,500.0,0.00017999,2]
[400384651,1767482831126,-1086.67708687,0.00018,2]
[400384652,1767482833096,-1917.97504125,0.00018,2]
[400384653,1767482835478,500.0,0.00043233,120]
[400384654,1767482835705,500.0,0.00043233,120]
[400384655,1767482835947,500.0,0.00043233,120]
[400384656,1767482836173,499.14,0.00043233,120]
[400384657,1767482847088,-1101.46443407,0.00018,2]
[400384659,1767482860181,10508.1265912,0.00028,120]
[400384660,1767482863883,500.0,0.00017999,2]
[400384661,1767482864354,500.0,0.00017999,2]
[400384662,1767482864930,500.0,0.00017999,2]
[400384663,1767482865237,500.0,0.00017999,2]
[400384664,1767482865592,500.0,0.00017999,2]
[400384665,1767482865959,500.0,0.00017999,2]
[400384666,1767482866340,500.0,0.00017999,2]
[400384667,1767482866637,500.0,0.00017999,2]
[400384668,1767482866977,500.0,0.00017999,2]
[400384669,1767482867309,500.0,0.00017999,2]
[400384670,1767482867598,500.0,0.00017999,2]
[400384671,1767482867651,500.0,0.00017999,2]
[400384672,1767482867693,500.0,0.00017999,2]
[400384673,1767482867730,500.0,0.00017999,2]
[400384674,1767482867766,500.0,0.00017999,2]
[400384675,1767482867837,500.0,0.00017999,2]
[400384676,1767482867875,500.0,0.00017999,2]
[400384677,1767482867910,500.0,0.00017999,2]
[400384678,1767482867947,500.0,0.00017999,2]
[400384679,1767482867982,500.0,0.00017999,2]
[400384680,1767482868018,500.0,0.00017999,2]
[400384681,1767482868068,500.0,0.00017999,2]
[400384682,1767482877227,501.40515254,0.000179,2]
[400384683,1767482892753,1200.0,0.00017999,2]
[400384685,1767482900261,250.0,0.00043233,120]
[400384689,1767482914674,89560.79329074,0.00016,4]
[400384690,1767482915639,164.79,0.00016712,2]
[400384691,1767482941525,300.0,0.00017999,2]
[400384692,1767482950124,-5349.73668254,0.00018,2]
[400384693,1767482953275,-31725.44872091,0.00018,2]
[400384694,1767482953378,-264002.36141681,0.00018,2]
[400384695,1767482953595,2098.74507874,0.000179,2]
[400384696,1767482958897,417.8376271,0.000179,2]
[400384697,1767482959078,-1068.55231,0.00018,2]
[400384698,1767482961666,150.0,0.00017973,2]
[400384699,1767482962193,150.0,0.00017973,2]
[400384700,1767482967208,-51628.40508,0.00018,2]
[400384701,1767482970831,419.05922016,0.000179,2]
[400384702,1767483001137,300.0,0.00017999,2]
[400384703,1767483001173,1200.0,0.00017999,2]
[400384704,1767483001211,300.0,0.00017999,2]
[400384705,1767483002073,233.85686919,0.00017999,2]
[400384706,1767483007857,500.0,0.00017999,2]
[400384707,1767483007915,500.0,0.00017999,2]
[400384709,1767483007971,334.032794,0.00017999,2]
[400384710,1767483008031,500.0,0.00017999,2]
[400384711,1767483008087,500.0,0.00017999,2]